bitfinex/quotes_ETHUSD_20240621
["timestamp","ask_amount","ask_price","bid_price","bid_amount"]
[1718970793386,2.28352138,3511.0,3509.8,2.3702]
[1718970793674,2.112,3511.1,3509.9,0.03533896]
[1718970793885,2.07230983,3511.0,3509.9,0.03533896]
[1718970794564,2.112,3511.1,3509.9,0.03533896]
[1718970794737,2.07231293,3511.0,3509.9,0.03533896]
[1718970796851,2.112,3511.1,3509.9,0.03533896]
[1718970797943,2.112,3511.1,3510.0,2.3684]
[1718970798344,2.112,3511.1,3510.1,0.03646697]
[1718970801209,3.0,3511.4,3510.1,0.03646697]
[1718970801489,2.34432,3511.5,3510.1,0.03646697]
[1718970801490,2.112,3511.5,3510.1,0.03646697]
[1718970801653,2.112,3511.5,3510.2,3.1202867]
[1718970801846,5.112,3511.9,3510.2,3.1202867]
[1718970802049,5.112,3511.9,3510.4,7.37]
[1718970802457,2.07195655,3511.8,3510.4,7.37]
[1718970802651,3.02246221,3511.8,3510.5,1.08538733]
[1718970802882,3.0,3511.7,3510.5,1.08538733]
[1718970803186,3.95050566,3511.8,3510.5,1.08538733]
[1718970804757,2.07200508,3511.7,3510.5,1.08538733]
[1718970805100,0.81345107,3511.6,3510.5,1.08538733]
[1718970805793,2.112,3511.5,3510.5,1.08538733]
[1718970807112,2.112,3511.8,3510.6,2.4294]
[1718970807464,2.112,3511.8,3510.7,0.03615953]
[1718970807665,2.112,3511.8,3510.8,0.35145882]
[1718970808308,2.112,3511.8,3510.9,0.03615953]
[1718970809309,2.07188263,3511.7,3510.9,0.03615953]
[1718970809464,2.112,3511.4,3510.9,0.03615953]
[1718970809666,2.07215216,3511.3,3510.9,0.03615953]
[1718970810022,0.65783522,3511.2,3510.4,7.37]
[1718970810179,2.112,3511.4,3511.0,0.03495421]
[1718970810377,2.112,3511.4,3510.4,7.37]
[1718970810711,2.07221384,3511.3,3510.4,7.37]
[1718970811013,2.07221384,3511.3,3510.5,0.03495421]
[1718970811171,2.112,3511.0,3510.5,0.03495421]
[1718970811373,2.07229431,3510.9,3510.5,0.03495421]
[1718970812973,2.112,3511.4,3510.5,0.03495421]
[1718970813180,2.07206326,3511.3,3510.5,0.03495421]
[1718970813442,2.07206326,3511.3,3510.5,1.01353963]
[1718970816225,2.112,3511.4,3510.5,1.01353963]
[1718970816447,2.07214242,3511.3,3510.5,1.01353963]
[1718970817725,2.07214242,3511.3,3510.6,2.491]
[1718970818332,2.07214242,3511.3,3510.7,0.03495421]
[1718970818849,2.07205262,3511.2,3510.7,0.03495421]
[1718970819061,2.07205262,3511.1,3510.7,0.03495421]
[1718970819362,2.112,3511.4,3510.7,0.03495421]
[1718970819650,2.07207909,3511.3,3510.7,0.03495421]
[1718970819813,2.07211176,3511.2,3510.7,0.03495421]
[1718970820019,2.07211176,3511.1,3510.7,0.03495421]
[1718970820346,2.07211176,3511.0,3510.7,0.03495421]
[1718970820542,2.07211176,3510.9,3510.7,0.03495421]
[1718970820845,2.3232,3511.4,3510.7,0.03495421]
[1718970820846,2.07211176,3510.8,3510.7,0.03495421]
[1718970821050,2.07211176,3511.3,3510.7,0.03495421]
[1718970821651,2.07211176,3511.3,3510.7,1.02454963]
[1718970821851,2.07211176,3511.2,3510.8,2.4854]
[1718970822012,2.112,3512.1,3510.8,2.51986179]
[1718970822209,2.07172024,3512.0,3510.9,0.35099496]
[1718970822451,2.112,3512.1,3510.9,0.35099496]
[1718970822669,5.0717454,3512.0,3511.0,0.03446179]
[1718970822947,2.112,3511.7,3511.0,0.03446179]
[1718970823151,2.0717454,3511.6,3510.8,2.4854]
[1718970823518,2.0717454,3511.6,3510.9,0.03446179]
[1718970824554,2.112,3511.7,3510.9,0.03446179]
[1718970824555,2.07198112,3511.5,3510.9,0.03446179]
[1718970824712,2.28318112,3511.6,3510.9,0.03446179]
[1718970824916,2.07198112,3511.5,3510.9,0.03446179]
[1718970825156,2.0719864,3511.5,3510.9,0.03446179]
[1718970825650,0.2112,3511.6,3510.9,0.03446179]
[1718970825852,2.07199633,3511.5,3510.9,0.03446179]
[1718970827550,2.07199633,3511.4,3510.9,0.03446179]
[1718970827715,2.07199633,3511.3,3510.9,0.03446179]
[1718970827912,2.07199633,3511.2,3510.9,0.03446179]
[1718970828139,2.07199633,3511.1,3510.9,0.03446179]
[1718970828337,2.07199633,3511.0,3510.9,0.03446179]
[1718970828942,0.2112,3511.6,3510.9,0.03446179]
[1718970829452,2.07204524,3511.5,3510.9,0.03446179]
[1718970829653,2.07204524,3511.4,3510.9,0.03446179]
[1718970829863,2.07204524,3511.3,3510.9,0.03446179]
[1718970830170,2.07202831,3511.2,3510.9,0.03446179]
[1718970830454,2.112,3511.7,3510.9,0.03446179]
[1718970830455,2.07202831,3511.1,3510.9,0.03446179]
[1718970830638,2.07202831,3511.0,3510.9,0.03446179]
[1718970830839,2.07202831,3511.6,3510.9,0.03446179]
[1718970831020,2.07202831,3511.5,3510.9,0.03446179]
[1718970831224,2.07202831,3511.4,3510.9,0.03446179]
[1718970831417,2.07202831,3511.3,3510.9,0.03446179]
[1718970831613,2.07202831,3511.2,3510.9,0.03446179]
[1718970831859,2.07202831,3511.1,3510.9,0.03446179]
[1718970832015,0.71840283,3511.6,3510.9,0.03446179]
[1718970832016,2.112,3511.2,3510.9,0.03446179]
[1718970832219,2.112,3511.2,3510.4,9.6891]
[1718970832220,2.07216701,3511.1,3510.4,9.6891]
[1718970832463,2.07216701,3511.0,3510.4,9.6891]
[1718970832636,2.07216701,3510.9,3510.4,9.6891]
[1718970832833,2.07216701,3510.8,3510.4,9.6891]
[1718970833159,2.07234541,3510.7,3510.4,9.6891]
[1718970833466,2.112,3511.2,3510.4,9.6891]
[1718970833467,2.07234541,3510.6,3510.4,9.6891]
[1718970833658,2.07234541,3510.5,3510.4,2.3191]
[1718970833860,2.07234541,3511.1,3510.4,2.3191]
[1718970834016,2.07234541,3511.0,3510.4,2.3191]
[1718970834346,2.07234541,3510.9,3510.4,2.3191]
[1718970834554,2.07234541,3510.8,3509.9,2.4547]
[1718970834739,2.07234541,3510.7,3509.9,2.4547]
[1718970834939,2.07234541,3510.6,3509.9,2.4547]
[1718970835261,2.07236977,3510.5,3510.0,0.98247]
[1718970835446,5.07235931,3511.1,3510.0,0.98247]
[1718970835622,2.07235931,3511.0,3510.0,0.98247]
[1718970835830,2.07235931,3510.9,3510.0,0.98247]
[1718970836145,3.0,3511.1,3510.0,0.98247]
[1718970836146,2.07235931,3510.8,3510.0,0.98247]
[1718970836347,2.07235931,3510.7,3510.0,0.98247]
[1718970836550,2.07235931,3510.6,3510.0,0.98247]
[1718970836746,2.07235931,3510.5,3510.0,0.98247]
[1718970836934,2.07235931,3510.4,3510.0,0.98247]
[1718970837124,2.07235931,3510.3,3509.9,2.4547]
[1718970837319,2.07235931,3510.2,3509.9,2.4547]
[1718970837552,2.07235931,3510.1,3510.0,0.03440592]
[1718970837958,2.07235931,3510.9,3510.0,0.03440592]
[1718970838168,2.07235931,3510.8,3510.0,0.03440592]
[1718970838367,3.0,3511.1,3510.0,0.03440592]
[1718970838368,2.07240053,3510.7,3510.0,0.03440592]
[1718970838657,3.0,3511.1,3510.0,0.28331651]
[1718970838865,2.112,3511.2,3510.0,0.28331651]
[1718970839066,2.07240007,3511.1,3510.0,0.28331651]
[1718970839228,2.07240007,3511.0,3510.0,0.28331651]
[1718970839430,2.07240007,3510.9,3510.0,0.28331651]
[1718970839632,2.07240009,3510.8,3510.1,0.27380165]
[1718970839838,2.07240009,3510.7,3510.1,0.27380165]
[1718970840173,2.07240009,3510.6,3510.2,0.03440592]
[1718970840468,3.0,3511.1,3510.2,0.31069668]
[1718970840469,2.07240009,3510.5,3510.2,0.31069668]
[1718970840672,2.07240009,3510.4,3510.2,0.31069668]
[1718970840875,3.0,3511.1,3510.2,0.31069668]
[1718970841037,2.07226943,3511.0,3510.2,0.31069668]
[1718970841232,2.07226943,3510.9,3510.2,0.03440592]
[1718970841448,2.07226943,3510.8,3509.9,2.4547]
[1718970841670,2.07226943,3510.7,3510.3,0.03440592]
[1718970841971,2.07226943,3510.6,3509.9,2.4547]
[1718970842189,2.07226943,3510.5,3510.0,2.73347]
[1718970842488,2.07226943,3510.4,3510.0,2.76787592]
[1718970842775,2.07226943,3510.3,3510.2,2.3465]
[1718970843073,2.07226943,3510.3,3510.2,2.38105259]
[1718970843282,2.07226943,3510.3,3510.2,2.68852361]
[1718970843571,2.07226943,3511.4,3510.2,2.68852361]
[1718970843775,2.07210134,3511.3,3510.2,2.68852361]
[1718970843978,2.07210134,3511.2,3510.2,2.68852361]
[1718970844189,2.07210134,3511.1,3510.3,1.00585236]
[1718970844477,2.07210134,3511.0,3510.3,1.00585236]
[1718970844688,2.07210134,3510.9,3510.4,2.38105259]
[1718970844851,2.07210134,3510.8,3510.5,0.3694376]
[1718970845052,2.07210134,3510.7,3510.5,0.3694376]
[1718970845248,3.04958036,3511.9,3510.4,2.3465]
[1718970845249,2.07210134,3510.6,3510.4,2.3465]
[1718970845570,2.07210134,3510.5,3510.4,2.3465]
[1718970845869,3.0,3511.9,3510.4,2.3465]
[1718970846071,2.07182867,3511.8,3510.5,10.39744574]
[1718970846276,2.07182867,3511.7,3510.5,10.39744574]
[1718970846468,2.07182867,3511.6,3510.5,10.39744574]
[1718970846769,3.0,3511.9,3510.6,0.47855726]
[1718970846973,2.07185411,3511.8,3510.6,0.53551903]
[1718970847145,2.07184431,3511.7,3510.6,0.53551903]
[1718970847352,3.0,3511.9,3510.6,0.53551903]
[1718970847353,2.07184431,3511.6,3510.6,0.53551903]
[1718970847567,2.07184431,3511.5,3510.7,1.00585236]
[1718970847775,2.07184431,3511.4,3510.7,1.00585236]
[1718970847955,2.07185897,3511.3,3510.7,1.00585236]
[1718970848167,2.07185897,3511.2,3510.7,1.00585236]
[1718970848341,2.07185897,3511.1,3510.8,0.53738234]
[1718970848533,2.07185897,3511.0,3510.8,0.53738234]
[1718970848752,2.07185897,3510.9,3510.7,1.00585236]
[1718970849039,2.07185897,3510.8,3510.7,1.00585236]
[1718970849565,0.878,3511.2,3510.7,1.00585236]
[1718970850085,2.07188977,3511.1,3510.7,1.00585236]
[1718970852772,0.878,3510.8,3510.5,7.37]
[1718970852995,0.878,3510.6,3510.5,7.37]
[1718970853271,2.94988977,3510.6,3510.5,7.37]
[1718970855440,2.07188977,3510.6,3510.5,7.37]
[1718970855866,2.07188977,3511.1,3510.5,7.37]
[1718970856037,0.66464898,3511.1,3510.5,7.37]
[1718970856241,2.07231913,3511.0,3510.5,7.37]
[1718970856486,2.07231924,3510.9,3510.5,7.37]
[1718970856658,2.07231924,3510.8,3510.5,7.37]
[1718970856872,2.07231924,3510.7,3510.5,7.37]
[1718970857061,0.66464898,3511.1,3510.5,7.37]
[1718970857062,2.07231924,3510.6,3510.5,7.37]
[1718970857265,2.07231924,3511.0,3510.5,7.37]
[1718970857447,2.07231924,3510.9,3510.5,7.37]
[1718970857781,2.07231924,3510.8,3510.5,7.37]
[1718970857990,2.07231924,3510.7,3510.5,7.37]
[1718970858285,2.07231924,3510.6,3509.8,7.37]
[1718970858489,2.3711,3510.4,3509.8,7.37]
[1718970858726,4.62466116,3510.3,3509.8,7.37]
[1718970858860,2.07231924,3510.2,3509.8,7.37]
[1718970859066,2.108,3510.3,3509.8,7.37]
[1718970859299,2.07285817,3510.2,3509.8,7.37]
[1718970859571,2.07285817,3510.2,3508.6,1.714]
[1718970859572,4.4826,3509.9,3509.1,7.37]
[1718970859763,2.07285817,3509.8,3509.1,7.37]
[1718970859975,2.07285817,3509.7,3508.7,22.0357]
[1718970860178,2.07285817,3509.6,3508.7,22.0357]
[1718970860425,2.07285817,3509.5,3508.7,22.0357]
[1718970860560,2.07285817,3509.4,3508.7,22.0357]
[1718970860905,2.07285817,3509.3,3508.7,22.0357]
[1718970861075,4.4826,3509.9,3508.7,22.0357]
[1718970861076,2.07285817,3509.2,3508.7,22.0357]
[1718970861265,2.07285817,3509.1,3508.7,22.0357]
[1718970861466,2.07285817,3509.0,3508.7,22.0357]
[1718970861666,2.07285817,3508.9,3508.7,2.3857]
[1718970861902,4.4826,3509.9,3508.7,2.3857]
[1718970862300,2.07310297,3509.8,3508.7,2.3857]
[1718970865218,4.4826,3509.9,3508.7,2.3857]
[1718970865423,2.07309656,3509.8,3508.8,0.97557]
[1718970865719,4.4826,3509.9,3508.8,0.97557]
[1718970865871,2.07311599,3509.8,3508.8,0.97557]
[1718970867177,2.07311599,3509.7,3508.9,2.2629]
[1718970867370,3.0,3510.2,3509.0,0.323847]
[1718970867371,2.07311599,3509.6,3509.0,0.323847]
[1718970867706,3.45145,3510.2,3509.0,0.35354287]
[1718970867878,2.07281749,3510.1,3509.0,0.35354287]
[1718970868064,2.07281749,3510.1,3509.1,0.35920129]
[1718970868273,3.45145,3510.2,3509.1,0.35920129]
[1718970868619,3.45145,3510.2,3509.2,0.02969587]
[1718970868620,2.07279926,3510.1,3509.2,0.02969587]
[1718970871523,2.0728637,3510.0,3509.2,0.02969587]
[1718970871687,2.0728637,3509.9,3509.2,0.02969587]
[1718970872021,2.0728637,3509.8,3509.2,0.02969587]
[1718970872185,2.0728637,3509.7,3509.2,0.29487559]
[1718970872388,3.0,3510.2,3509.2,0.29487559]
[1718970872586,2.07279304,3510.1,3509.2,0.29487559]
[1718970872825,2.07279304,3510.0,3509.2,0.29487559]
[1718970873013,2.07279304,3509.9,3509.2,0.29487559]
[1718970873195,2.07279304,3509.8,3509.2,0.29487559]
[1718970873525,2.07279304,3509.7,3509.2,0.29487559]
[1718970873755,3.0,3510.2,3509.2,0.29487559]
[1718970873960,2.07280604,3510.1,3509.2,0.29487559]
[1718970874261,2.07280604,3510.0,3509.2,0.29487559]
[1718970874463,2.07280604,3509.9,3509.2,0.29487559]
[1718970874757,2.07282669,3509.8,3509.2,0.29487559]
[1718970874941,3.0,3510.2,3509.2,0.29487559]
[1718970875137,2.07285295,3510.1,3509.2,0.29487559]
[1718970875523,0.879,3509.6,3509.2,0.29487559]
[1718970879239,0.879,3509.6,3509.2,0.02969587]
[1718970879445,0.5108,3510.2,3508.9,2.2629]
[1718970879656,0.879,3509.6,3509.3,0.03003068]
[1718970879855,0.879,3509.6,3508.9,2.2629]
[1718970880172,0.879,3509.6,3509.4,0.03003068]
[1718970880466,0.879,3509.6,3509.5,0.03003068]
[1718970880636,2.95187405,3509.6,3509.0,0.323847]
[1718970880831,0.879,3509.6,3509.5,0.03003068]
[1718970881036,0.879,3509.6,3509.1,0.3562317]
[1718970881236,3.0,3510.3,3509.2,0.03003068]
[1718970881493,2.0726961,3510.2,3509.3,2.4383]
[1718970881792,2.0726961,3510.1,3509.3,2.46836208]
[1718970881976,0.879,3510.0,3509.3,2.46836208]
[1718970882300,0.879,3510.2,3509.4,0.28245938]
[1718970882571,0.8633,3510.0,3509.4,0.28245938]
[1718970882789,0.8633,3510.0,3509.5,0.30213802]
[1718970883080,2.3089,3510.6,3509.5,0.30213802]
[1718970883241,0.879,3510.0,3509.5,0.30213802]
[1718970883445,2.07265579,3509.9,3509.5,0.30213802]
[1718970883862,0.879,3510.0,3509.5,0.30213802]
[1718970884185,0.879,3509.8,3509.5,0.30213802]
[1718970884345,0.879,3509.8,3509.5,0.03006208]
[1718970884544,0.879,3509.8,3509.3,2.4383]
[1718970884741,0.879,3509.8,3509.6,0.03006208]
[1718970884990,0.879,3509.8,3509.3,2.4383]
[1718970885143,0.879,3509.8,3509.7,0.03006208]
[1718970885354,0.879,3509.8,3509.4,0.27945317]
[1718970885574,0.879,3509.8,3509.7,0.03006208]
[1718970885873,2.87046441,3509.8,3509.7,0.03006208]
[1718970886080,2.87046441,3509.8,3509.4,0.27945317]
[1718970886394,0.7977,3509.8,3509.7,0.03006208]
[1718970886875,0.7977,3509.8,3509.4,0.27945317]
[1718970887089,0.879,3510.0,3509.7,0.03006208]
[1718970887395,0.879,3510.2,3509.6,2.2737]
[1718970887601,0.879,3510.2,3509.8,0.03006208]
[1718970887745,0.879,3510.2,3509.6,2.61614753]
[1718970887946,0.879,3510.2,3509.9,0.03006208]
[1718970888161,0.879,3510.2,3509.6,2.61614753]
[1718970888363,0.879,3510.2,3510.0,0.03006208]
[1718970888546,0.879,3510.2,3509.6,2.61614753]
[1718970888884,0.8472,3510.2,3509.7,0.26161475]
[1718970889082,0.8472,3510.2,3509.7,0.29167683]
[1718970889247,2.07250941,3510.1,3509.7,0.29167683]
[1718970889642,0.8472,3510.2,3509.7,0.29167683]
[1718970889886,3.0,3510.8,3509.7,0.29167683]
[1718970890050,0.879,3510.3,3509.8,0.25653768]
[1718970890379,2.07241489,3510.2,3509.8,0.25653768]
[1718970890583,2.07241489,3510.2,3509.9,0.03006208]
[1718970890812,3.0,3511.2,3509.9,0.03006208]
[1718970890813,0.879,3510.6,3509.9,0.03006208]
[1718970891084,2.07232023,3510.5,3509.9,0.03006208]
[1718970892974,4.50262023,3510.5,3509.9,0.03006208]
[1718970893221,0.879,3510.0,3509.9,0.03006208]
[1718970893735,0.879,3510.0,3509.9,0.02968186]
[1718970893872,2.95163785,3510.0,3509.3,2.2975]
[1718970894078,2.07263785,3509.9,3509.4,1.00237317]
[1718970894515,2.07261657,3509.8,3509.4,1.00237317]
[1718970894690,2.07267433,3509.7,3509.4,1.00237317]
[1718970894885,0.879,3510.0,3509.4,1.00237317]
[1718970895187,2.07267517,3509.9,3509.5,0.66318709]
[1718970896297,2.07262195,3509.8,3509.5,0.66318709]
[1718970896502,2.07262195,3509.7,3509.5,0.66318709]
[1718970896705,0.879,3510.0,3509.5,0.66318709]
[1718970896912,2.07263201,3509.9,3509.5,0.66318709]
[1718970897327,0.879,3509.8,3509.3,2.2975]
[1718970897614,0.879,3509.8,3508.9,16.159]
[1718970897615,0.879,3509.6,3508.9,15.28]
[1718970897831,6.006,3511.1,3508.8,9.7149]
[1718970897832,0.879,3509.4,3508.8,9.7149]
[1718970897983,2.07263201,3509.3,3508.8,9.7149]
[1718970899326,2.07263201,3509.3,3508.5,2.4612]
[1718970899495,2.07310261,3509.2,3508.5,5.4612]
[1718970899689,2.07310261,3509.1,3508.6,1.37102]
[1718970899897,2.07310261,3509.0,3508.6,1.37102]
[1718970900110,2.07310261,3508.9,3508.6,1.37102]
[1718970900410,2.07310261,3508.9,3508.5,5.4612]
[1718970900411,2.07304532,3508.8,3508.7,0.65077196]
[1718970900610,2.07304532,3509.3,3508.7,0.65077196]
[1718970901044,3.0,3510.5,3508.7,0.65077196]
[1718970901045,2.07304532,3509.2,3508.7,0.65077196]
[1718970901245,2.07304532,3509.1,3508.8,2.8914972]
[1718970901532,2.07304532,3509.0,3508.8,2.8914972]
[1718970901735,2.11,3510.2,3508.8,2.2803]
[1718970901900,2.07299331,3510.1,3508.8,9.6503]
[1718970902099,2.07299331,3510.0,3508.8,9.6503]
[1718970902307,2.07283702,3509.9,3509.0,2.3878]
[1718970902608,2.07283702,3509.8,3509.0,2.3878]
[1718970902834,2.07283702,3509.7,3509.1,1.05676196]
[1718970903006,2.0725778,3509.6,3509.1,1.05676196]
[1718970903336,2.0725778,3509.5,3509.2,0.6444562]
[1718970903546,2.4201,3511.0,3509.3,2.4427]
[1718970903855,2.07248078,3510.9,3509.5,7.37]
[1718970904057,2.73273886,3510.8,3509.6,0.3205738]
[1718970904228,4.5301,3511.0,3509.6,0.3205738]
[1718970904229,2.07248078,3510.7,3509.6,0.3205738]
[1718970904445,2.07248078,3510.6,3509.6,0.3205738]
[1718970904631,4.5301,3511.0,3509.7,0.76905738]
[1718970904837,2.07244325,3510.9,3509.7,0.76905738]
[1718970905120,2.07244325,3510.8,3509.7,0.76905738]
[1718970905454,2.07244325,3510.7,3509.8,0.28770458]
[1718970905659,2.07244325,3510.6,3509.8,0.28770458]
[1718970905833,3.0,3510.9,3509.8,0.28770458]
[1718970905834,2.07244325,3510.5,3509.8,0.28770458]
[1718970906034,2.07244325,3510.4,3509.8,0.28770458]
[1718970906229,2.07244325,3510.3,3509.8,0.28770458]
[1718970906428,2.07244325,3510.2,3509.8,0.28770458]
[1718970906653,2.07244325,3510.1,3509.8,0.28770458]
[1718970906859,2.07244325,3510.0,3509.8,0.28770458]
[1718970907167,2.07244325,3509.9,3509.8,0.28770458]
[1718970907455,2.07244325,3510.8,3509.6,0.3205738]
[1718970907635,3.0,3510.9,3509.6,0.3205738]
[1718970907840,2.07252234,3510.8,3509.6,0.3205738]
[1718970908048,2.07252234,3510.7,3509.6,0.3205738]
[1718970908341,2.07252234,3510.6,3509.7,0.76905738]
[1718970908539,2.07252234,3510.5,3509.7,0.76905738]
[1718970908752,2.07252234,3510.4,3509.7,0.76905738]
[1718970908932,2.07252234,3510.3,3509.8,0.84596312]
[1718970909135,2.07252234,3510.2,3509.8,0.84596312]
[1718970909457,2.07252234,3510.1,3509.8,0.84596312]
[1718970909633,2.07252234,3510.0,3509.8,0.84596312]
[1718970909954,3.0,3510.9,3509.5,7.37]
[1718970909955,2.07252234,3509.9,3509.5,7.37]
[1718970910158,2.07252234,3510.1,3509.5,7.37]
[1718970910469,2.07252234,3510.0,3509.5,7.37]
[1718970910623,2.07252234,3509.9,3509.5,7.37]
[1718970910823,2.07275464,3509.8,3509.5,7.37]
[1718970911038,2.07275464,3509.7,3509.5,7.37]
[1718970911245,2.0728122,3509.6,3509.5,7.37]
[1718970911451,2.56224734,3510.4,3509.5,7.37]
[1718970911651,2.11,3510.1,3509.5,7.37]
[1718970911855,2.0728122,3510.0,3509.2,7.37]
[1718970912066,2.0728122,3509.9,3509.2,7.37]
[1718970912283,2.0728122,3509.8,3509.2,7.37]
[1718970912439,2.0728122,3509.7,3509.2,7.37]
[1718970912639,2.0728122,3509.6,3509.3,0.02765494]
[1718970912946,2.0728122,3509.5,3509.2,7.37]
[1718970913170,2.0728122,3509.4,3509.2,7.37]
[1718970913353,2.0728122,3509.3,3508.8,2.3861]
[1718970913555,2.11,3510.1,3508.8,2.3861]
[1718970913556,2.0728122,3509.2,3508.9,0.97561]
[1718970913863,2.07301926,3509.1,3508.9,0.97561]
[1718970914062,2.07301926,3509.0,3508.8,2.3861]
[1718970914262,2.07301926,3508.9,3508.8,2.3861]
[1718970914457,2.07301926,3510.0,3508.8,2.3861]
[1718970914775,2.07301926,3509.9,3508.8,2.3861]
[1718970914976,2.07301926,3509.8,3508.8,2.3861]
[1718970915182,2.07301926,3509.7,3508.8,2.3861]
[1718970915366,2.07301926,3509.6,3508.9,0.97561]
[1718970915561,2.07301926,3509.5,3508.9,0.97561]
[1718970915764,2.07301926,3509.4,3508.9,0.97561]
[1718970915983,2.07301926,3509.3,3509.0,0.336171]
[1718970916268,2.07301926,3509.2,3508.9,0.97561]
[1718970916494,2.07301926,3509.1,3508.9,0.97561]
[1718970916677,2.07301926,3509.0,3508.9,0.97561]
[1718970916881,2.11,3510.1,3508.9,0.97561]
[1718970917090,2.07295466,3510.0,3508.9,0.97561]
[1718970917271,2.07295466,3509.9,3509.0,0.336171]
[1718970917473,2.07295466,3509.8,3509.0,0.336171]
[1718970917682,2.07295466,3509.7,3509.0,0.336171]
[1718970917904,2.07295466,3509.6,3509.1,0.3697881]
[1718970918105,2.07295466,3509.5,3509.1,0.3697881]
[1718970918270,2.07295466,3509.4,3509.1,0.3697881]
[1718970918472,2.07295466,3509.3,3509.1,0.3697881]
[1718970918705,2.07295466,3509.2,3509.1,0.3697881]
[1718970918916,2.07295466,3510.3,3509.1,0.3697881]
[1718970919082,2.07295466,3510.2,3509.1,0.3697881]
[1718970919387,2.07295466,3510.1,3509.2,0.67639386]
[1718970919578,2.07295466,3510.0,3509.2,0.67639386]
[1718970919778,2.07295466,3509.9,3509.2,0.67639386]
[1718970919972,3.0,3510.4,3509.2,0.67639386]
[1718970920176,2.0728073,3510.3,3509.3,0.8416182]
[1718970920474,3.0,3510.4,3509.3,0.8416182]
[1718970920674,2.07276632,3510.3,3509.3,0.8416182]
[1718970920890,3.0,3510.4,3509.3,0.8416182]
[1718970920891,2.07276632,3510.2,3509.3,0.8416182]
[1718970921110,3.0,3510.4,3509.3,0.8416182]
[1718970921425,2.07275268,3510.3,3509.3,0.8416182]
[1718970921713,2.07275268,3510.3,3509.0,7.37]
[1718970921714,2.07275268,3510.2,3509.0,7.37]
[1718970921920,2.49,3510.0,3509.0,7.37]
[1718970922102,2.07275268,3509.9,3509.0,7.37]
[1718970922279,2.11,3509.7,3509.0,7.37]
[1718970922615,2.11,3509.7,3508.8,2.3861]
[1718970922616,2.07275268,3509.6,3508.8,2.3861]
[1718970922819,2.07275268,3509.6,3508.6,7.37]
[1718970923127,2.11,3509.7,3508.6,7.37]
[1718970923128,2.07315778,3509.5,3508.7,0.97799]
[1718970923300,2.07315778,3509.4,3508.7,0.97799]
[1718970923504,0.879,3509.1,3508.7,0.97799]
[1718970923721,2.07315778,3509.0,3508.7,0.97799]
[1718970924290,2.07315778,3509.0,3508.4,2.4099]
[1718970924496,0.879,3508.8,3508.4,2.4099]
[1718970924691,2.07315778,3508.7,3508.4,2.4099]
[1718970924989,3.0,3509.8,3508.4,2.4099]
[1718970924990,2.07315778,3508.6,3508.4,2.4099]
[1718970925193,0.96678527,3510.3,3508.0,21.554]
[1718970925194,3.0,3510.2,3508.6,2.4945]
[1718970925389,2.3738,3510.3,3508.8,2.4945]
[1718970925390,2.07295711,3510.1,3508.8,2.4945]
[1718970925601,2.07295711,3510.0,3508.9,1.04913664]
[1718970925802,2.07295711,3509.9,3509.0,2.2776]
[1718970926003,2.07274217,3509.8,3509.1,0.32697491]
[1718970926204,2.07274217,3509.7,3509.1,0.32697491]
[1718970926405,2.07274217,3509.6,3509.1,0.32697491]
[1718970926613,2.07274217,3509.5,3509.2,0.3596724]
[1718970926843,2.07274217,3509.4,3509.2,0.3596724]
[1718970927062,2.07274217,3509.3,3509.0,2.2776]
[1718970927194,2.07274217,3509.2,3509.0,2.2776]
[1718970927395,2.07274217,3509.1,3509.0,2.2776]
[1718970927692,2.07287915,3510.2,3509.0,2.2776]
[1718970927890,2.07287915,3510.2,3509.1,0.52776]
[1718970928330,2.07287915,3510.2,3509.2,0.02673686]
[1718970928515,2.3671,3510.0,3509.2,0.02673686]
[1718970928830,2.07287915,3509.9,3509.0,2.2776]
[1718970929031,2.07297022,3509.8,3509.3,0.02673686]
[1718970929244,2.07297022,3509.7,3509.0,2.2776]
[1718970929415,2.11,3509.9,3509.4,0.02673686]
[1718970929593,2.07305624,3509.8,3508.7,9.8002]
[1718970930033,2.07305624,3509.8,3508.8,0.02683446]
[1718970930261,2.11,3509.9,3508.8,0.02683446]
[1718970930262,2.07302478,3509.7,3508.8,0.02683446]
[1718970930477,2.07302478,3509.6,3508.8,0.02683446]
[1718970930632,2.07302478,3509.5,3508.8,0.02683446]
[1718970930832,2.11,3509.9,3508.8,0.02683446]
[1718970930833,2.07302478,3509.4,3508.8,0.02683446]
[1718970932072,2.07303755,3508.9,3508.7,9.8002]
[1718970932249,2.07303755,3508.8,3508.7,11.08022]
[1718970932451,2.07303755,3509.8,3508.7,11.08022]
[1718970935250,2.11,3509.9,3508.7,11.08022]
[1718970935458,2.0730981,3509.8,3508.7,11.08022]
[1718970935762,2.0730981,3509.8,3508.8,0.74177196]
[1718970937773,2.0730981,3509.8,3508.9,2.3357]
[1718970938340,2.07289699,3509.7,3508.9,2.3357]
[1718970938586,2.07289699,3509.6,3508.9,2.3357]
[1718970938794,2.07301236,3509.5,3508.9,2.3357]
[1718970938944,2.07301236,3509.4,3509.0,1.0447472]
[1718970939282,2.07301236,3509.3,3508.9,2.3357]
[1718970939579,2.11,3509.9,3508.9,2.3357]
[1718970939580,2.07303817,3509.2,3508.9,2.3357]
[1718970939739,2.07303817,3509.1,3508.9,2.3357]
[1718970939942,2.11,3509.9,3509.0,0.97057]
[1718970940177,2.07301798,3509.8,3509.0,0.97057]
[1718970940867,2.07302745,3509.7,3509.0,0.97057]
[1718970941198,2.11,3509.5,3508.7,7.37]
[1718970941558,2.07321711,3509.4,3508.7,7.37]
[1718970942669,2.07321711,3509.4,3508.8,0.02699132]
[1718970943645,2.07321711,3509.4,3508.9,0.97945913]
[1718970944031,2.07321711,3509.3,3509.0,2.4052]
[1718970944285,2.07321711,3509.2,3509.0,2.43227849]
[1718970944505,4.4597,3510.2,3509.1,0.34117376]
[1718970944648,2.07283981,3510.1,3509.1,0.34117376]
[1718970944982,2.07284982,3510.0,3509.2,0.02707849]
[1718970945186,2.07284982,3509.9,3509.2,0.02707849]
[1718970945355,2.07284982,3509.8,3509.2,0.40236963]
[1718970945556,2.07284982,3509.7,3509.2,0.40236963]
[1718970945757,2.07284982,3509.6,3509.2,0.02707849]
[1718970945956,2.07284982,3509.5,3509.0,2.4052]
[1718970946180,2.07284982,3509.4,3509.3,0.02707849]